fUSD/lending_fUSD_20240915
["ID","MTS","AMOUNT","RATE_DAILY","PERIOD"]
[338206602,1726385459459,155.01,0.00010959,2]
[338206603,1726385459783,-1294.75790991,0.00012685,2]
[338206604,1726385459793,-500.0,0.00012785,2]
[338206605,1726385459802,-500.0,0.00012886,2]
[338206606,1726385459812,-500.0,0.00012987,2]
[338206607,1726385459821,-500.0,0.00012987,2]
[338206608,1726385459830,-500.0,0.00013059,2]
[338206609,1726385459839,-500.0,0.0001316,2]
[338206610,1726385459848,-500.0,0.00013261,2]
[338206611,1726385459857,-500.0,0.00013261,2]
[338206612,1726385459866,-1262.42715497,0.00013333,2]
[338206613,1726385459875,-588.53,0.00013333,2]
[338206614,1726385459884,-771.83,0.00013333,2]
[338206615,1726385459893,-1544.68,0.00013333,2]
[338206616,1726385459903,-2198.68,0.00013333,2]
[338206617,1726385459912,-955.86,0.00013333,2]
[338206618,1726385459921,-436.71,0.00013333,2]
[338206619,1726385459931,-500.0,0.00013333,2]
[338206620,1726385459942,-3985.9,0.00013333,2]
[338206621,1726385459952,-757.94,0.00013333,2]
[338206622,1726385459962,-1775.28,0.00013333,2]
[338206623,1726385459971,-509.91306673,0.00013333,2]
[338206624,1726385459980,-1985.12,0.00013333,2]
[338206625,1726385459990,-500.0,0.00013333,2]
[338206626,1726385459999,-1179.91,0.00013333,2]
[338206627,1726385460008,-500.0,0.00013333,2]
[338206628,1726385460018,-500.0,0.00013333,2]
[338206629,1726385460027,-610.18,0.00013333,2]
[338206630,1726385460036,-2105.61,0.00013333,2]
[338206631,1726385460046,-781.09,0.00013333,2]
[338206632,1726385460056,-1790.64,0.00013333,2]
[338206633,1726385460066,-1962.82,0.00013333,2]
[338206634,1726385460076,-500.0,0.00013333,2]
[338206635,1726385460085,-819.5,0.00013333,2]
[338206636,1726385460095,-3220.08,0.00013333,2]
[338206637,1726385460105,-7056.38,0.00013333,2]
[338206638,1726385460114,-500.0,0.00013333,2]
[338206639,1726385460123,-3201.66,0.00013333,2]
[338206640,1726385460134,-3631.65,0.00013333,2]
[338206641,1726385460144,-2475.1,0.00013333,2]
[338206642,1726385460154,-500.0,0.00013333,2]
[338206643,1726385460164,-769.89,0.00013333,2]
[338206644,1726385460174,-3967.45,0.00013333,2]
[338206645,1726385460184,-2071.6,0.00013333,2]
[338206646,1726385460194,-2498.85,0.00013333,2]
[338206647,1726385460205,-2726.91,0.00013333,2]
[338206648,1726385460215,-2743.08,0.00013333,2]
[338206649,1726385460224,-13172.05,0.00013333,2]
[338206650,1726385460234,-1120.76,0.00013333,2]
[338206651,1726385460244,-602.83,0.00013333,2]
[338206652,1726385460254,-500.0,0.00013333,2]
[338206653,1726385460263,-1904.52,0.00013333,2]
[338206654,1726385460273,-41079.93,0.00013333,2]
[338206655,1726385460283,-500.0,0.00013333,2]
[338206656,1726385460293,-953.92,0.00013333,2]
[338206657,1726385460303,-500.0,0.00013333,2]
[338206658,1726385460313,-2838.42,0.00013333,2]
[338206659,1726385460322,-1008.15,0.00013333,2]
[338206660,1726385460332,-440.25,0.00013333,2]
[338206661,1726385460342,-2901.35,0.00013334,2]
[338206662,1726385460351,-727.38,0.00013334,2]
[338206663,1726385460361,-1797.0,0.00013334,2]
[338206664,1726385460371,-500.0,0.00013334,2]
[338206665,1726385460380,-3574.44,0.00013334,2]
[338206666,1726385460390,-3090.98,0.00013334,2]
[338206667,1726385460399,-2181.21,0.00013334,2]
[338206668,1726385460409,-2473.67,0.00013334,2]
[338206669,1726385460419,-2244.94,0.00013334,2]
[338206670,1726385460429,-2253.4,0.00013334,2]
[338206671,1726385460438,-500.0,0.00013334,2]
[338206672,1726385460449,-1564.27,0.00013334,2]
[338206673,1726385460464,-626.69,0.00013334,2]
[338206674,1726385460474,-2295.46,0.00013334,2]
[338206675,1726385460484,-1388.89,0.00013334,2]
[338206676,1726385460494,-1000.0,0.00013334,2]
[338206677,1726385460504,-500.0,0.00013334,2]
[338206678,1726385460514,-2007.97,0.00013334,2]
[338206679,1726385460524,-1221.49,0.00013334,2]
[338206680,1726385460534,-500.0,0.00013334,2]
[338206681,1726385460544,-506.66,0.00013334,2]
[338206682,1726385460554,-2137.27,0.00013334,2]
[338206683,1726385460564,-2240.36,0.00013334,2]
[338206684,1726385460574,-500.0,0.00013334,2]
[338206685,1726385460584,-1332.56,0.00013334,2]
[338206686,1726385460594,-500.0,0.00013334,2]
[338206687,1726385460604,-1914.56,0.00013334,2]
[338206688,1726385460614,-2275.26,0.00013334,2]
[338206689,1726385460624,-500.0,0.00013334,2]
[338206690,1726385460633,-500.0,0.00013334,2]
[338206691,1726385460643,-1554.97,0.00013334,2]
[338206692,1726385460653,-2425.65,0.00013334,2]
[338206693,1726385460663,-1570.02,0.00013334,2]
[338206694,1726385460673,-855.58,0.00013334,2]
[338206695,1726385460683,-3951.81,0.00013334,2]
[338206696,1726385460692,-1785.93,0.00013334,2]
[338206697,1726385460703,-1091.49,0.00013334,2]
[338206698,1726385460713,-1193.6,0.00013334,2]
[338206699,1726385460722,-1680.24,0.00013334,2]
[338206700,1726385460732,-1960.38,0.00013334,2]
[338206701,1726385460743,-1024.46,0.00013334,2]
[338206702,1726385460752,-1748.33,0.00013334,2]
[338206703,1726385460762,-1646.65,0.00013334,2]
[338206704,1726385460772,-1258.22,0.00013334,2]
[338206705,1726385460782,-1192.83,0.00013334,2]
[338206706,1726385460792,-738.73,0.00013334,2]
[338206707,1726385460802,-1474.5,0.00013334,2]
[338206708,1726385460812,-500.0,0.00013334,2]
[338206709,1726385460823,-3361.77,0.00013334,2]
[338206710,1726385460832,-603.96,0.00013334,2]
[338206711,1726385460843,-1358.47,0.00013334,2]
[338206712,1726385460852,-500.0,0.00013334,2]
[338206713,1726385460862,-2242.29,0.00013334,2]
[338206714,1726385460872,-38171.62,0.00013334,2]
[338206715,1726385460882,-775.04,0.00013334,2]
[338206716,1726385460894,-1051.81,0.00013334,2]
[338206717,1726385460904,-1862.82,0.00013334,2]
[338206718,1726385460913,-2994.99,0.00013334,2]
[338206719,1726385460924,-1746.19,0.00013334,2]
[338206720,1726385460935,-1390.07,0.00013334,2]
[338206721,1726385460945,-2312.18,0.00013334,2]
[338206722,1726385460955,-3070.43,0.00013334,2]
[338206723,1726385460965,-696.35,0.00013334,2]
[338206724,1726385460978,-753.68,0.00013334,2]
[338206725,1726385460988,-683.07,0.00013334,2]
[338206726,1726385460998,-500.0,0.00013334,2]
[338206727,1726385461008,-589.28,0.00013334,2]
[338206728,1726385461018,-740.02,0.00013334,2]
[338206729,1726385461028,-1600.08,0.00013334,2]
[338206730,1726385461038,-1586.26,0.00013334,2]
[338206731,1726385461049,-5313.91,0.00013334,2]
[338206732,1726385461059,-500.0,0.00013334,2]
[338206733,1726385461069,-869.71,0.00013334,2]
[338206734,1726385461079,-22253.24,0.00013334,2]
[338206735,1726385461090,-785.67,0.00013334,2]
[338206736,1726385461099,-2759.54,0.00013334,2]
[338206737,1726385461109,-4139.0,0.00013334,2]
[338206738,1726385461119,-500.0,0.00013334,2]
[338206739,1726385461129,-602.46,0.00013334,2]
[338206740,1726385461138,-500.0,0.00013334,2]
[338206741,1726385461148,-612.26,0.00013334,2]
[338206742,1726385461158,-1975.37,0.00013334,2]
[338206743,1726385461168,-9408.61,0.00013334,2]
[338206744,1726385461178,-1760.48,0.00013334,2]
[338206745,1726385461188,-1881.29,0.00013334,2]
[338206746,1726385461198,-2950.4,0.00013334,2]
[338206747,1726385461208,-2876.79,0.00013334,2]
[338206748,1726385461218,-868.53,0.00013334,2]
[338206749,1726385461227,-862.72,0.00013334,2]
[338206750,1726385461237,-2980.36,0.00013334,2]
[338206751,1726385461247,-3728.94,0.00013334,2]
[338206752,1726385461256,-1823.27,0.00013334,2]
[338206753,1726385461266,-3170.47,0.00013334,2]
[338206754,1726385461276,-150.0,0.00013379,2]
[338206755,1726385461286,-448.0,0.00013379,2]
[338206756,1726385461295,-10598.699,0.00013379,2]
[338206757,1726385461304,-916.905,0.00013379,2]
[338206758,1726385461314,-500.0,0.00013424,2]
[338206759,1726385461323,-500.0,0.00013424,2]
[338206760,1726385461333,-1420.6,0.00013434,2]
[338206761,1726385461343,-1957.9,0.00013434,2]
[338206762,1726385461353,-500.0,0.00013434,2]
[338206763,1726385461363,-1036.14,0.00013434,2]
[338206764,1726385461373,-1409.71,0.00013434,2]
[338206765,1726385461382,-603.62,0.00013434,2]
[338206766,1726385461392,-1658.82,0.00013434,2]
[338206767,1726385461401,-500.0,0.00013434,2]
[338206768,1726385461411,-583.92,0.00013434,2]
[338206769,1726385461420,-500.0,0.00013434,2]
[338206770,1726385461430,-1140.81,0.00013434,2]
[338206771,1726385461440,-500.0,0.00013434,2]
[338206772,1726385461449,-500.0,0.00013434,2]
[338206773,1726385461459,-500.0,0.00013434,2]
[338206774,1726385461469,-906.53,0.00013434,2]
[338206775,1726385461478,-500.0,0.00013434,2]
[338206776,1726385461488,-500.0,0.00013434,2]
[338206777,1726385461498,-1678.87,0.00013434,2]
[338206778,1726385461507,-500.0,0.00013434,2]
[338206779,1726385461517,-714.44,0.00013434,2]
[338206780,1726385461527,-500.0,0.00013434,2]
[338206781,1726385461537,-500.0,0.00013434,2]
[338206782,1726385461547,-890.6,0.00013434,2]
[338206783,1726385461558,-500.0,0.00013434,2]
[338206784,1726385461568,-500.0,0.00013434,2]
[338206785,1726385461579,-500.0,0.00013434,2]
[338206786,1726385461589,-1628.51,0.00013434,2]
[338206787,1726385461600,-500.0,0.00013434,2]
[338206788,1726385461610,-500.0,0.00013434,2]
[338206789,1726385461620,-500.0,0.00013434,2]
[338206790,1726385461630,-500.0,0.00013434,2]
[338206791,1726385461640,-582.5,0.00013434,2]
[338206792,1726385461650,-1041.39,0.00013434,2]
[338206793,1726385461661,-500.0,0.00013434,2]
[338206794,1726385461671,-500.0,0.00013434,2]
[338206795,1726385461681,-500.0,0.00013434,2]
[338206796,1726385461691,-500.0,0.00013434,2]
[338206797,1726385461702,-500.0,0.00013434,2]
[338206798,1726385461712,-500.0,0.00013434,2]
[338206799,1726385461722,-254.67120081,0.00013434,2]
[338206800,1726385461732,-561.73,0.00013434,2]
[338206801,1726385461742,-500.0,0.00013434,2]
[338206802,1726385461752,-532.4,0.00013434,2]
[338206803,1726385461762,-500.0,0.00013434,2]
[338206804,1726385461772,-500.0,0.00013434,2]
[338206805,1726385461782,-500.0,0.00013434,2]
[338206806,1726385461792,-500.0,0.00013434,2]
[338206807,1726385461802,-500.0,0.00013434,2]
[338206808,1726385461812,-500.0,0.00013434,2]
[338206809,1726385461823,-500.0,0.00013434,2]
[338206810,1726385461833,-500.0,0.00013434,2]
[338206811,1726385461843,-854.36,0.00013434,2]
[338206812,1726385461852,-500.0,0.00013434,2]
[338206813,1726385461862,-957.75,0.00013434,2]
[338206814,1726385461872,-615.18,0.00013434,2]
[338206815,1726385461882,-500.0,0.00013434,2]
[338206816,1726385461892,-1167.66,0.00013434,2]
[338206817,1726385461902,-1180.77,0.00013434,2]
[338206818,1726385461911,-569.36,0.00013434,2]
[338206819,1726385461921,-500.0,0.00013434,2]
[338206820,1726385461931,-538.49,0.00013434,2]
[338206821,1726385461942,-1070.03,0.00013434,2]
[338206822,1726385461953,-1001.76,0.00013434,2]
[338206823,1726385461963,-500.0,0.00013434,2]
[338206824,1726385461973,-500.0,0.00013434,2]
[338206825,1726385461983,-543.2,0.00013434,2]
[338206826,1726385461993,-1185.08,0.00013434,2]
[338206827,1726385462003,-610.99,0.00013434,2]
[338206828,1726385462014,-250.03399169,0.00013434,2]
[338206829,1726385462025,-1107.79,0.00013434,2]
[338206830,1726385462035,-572.18,0.00013434,2]
[338206831,1726385462045,-500.0,0.00013434,2]
[338206832,1726385462055,-500.0,0.00013434,2]
[338206833,1726385462064,-376.06054966,0.00013434,2]
[338206834,1726385462074,-500.0,0.00013434,2]
[338206835,1726385462084,-500.0,0.00013434,2]
[338206836,1726385462094,-700.71,0.00013434,2]
[338206837,1726385462104,-500.0,0.00013434,2]
[338206838,1726385462114,-1736.36,0.00013434,2]
[338206839,1726385462124,-500.0,0.00013434,2]
[338206840,1726385462134,-500.0,0.00013434,2]
[338206841,1726385462143,-500.0,0.00013434,2]
[338206842,1726385462153,-1050.6,0.00013434,2]
[338206843,1726385462163,-500.0,0.00013434,2]
[338206844,1726385462172,-500.0,0.00013434,2]
[338206845,1726385462182,-1288.18,0.00013434,2]
[338206846,1726385462192,-716.48,0.00013434,2]
[338206847,1726385462203,-1062.12,0.00013434,2]
[338206848,1726385462213,-500.0,0.00013434,2]
[338206849,1726385462223,-500.0,0.00013434,2]
[338206850,1726385462232,-500.0,0.00013434,2]
[338206851,1726385462242,-500.0,0.00013434,2]
[338206852,1726385462252,-500.0,0.00013434,2]
[338206853,1726385462262,-575.5,0.00013434,2]
[338206854,1726385462272,-976.81,0.00013434,2]
[338206855,1726385462282,-301.69836771,0.00013434,2]
[338206856,1726385462292,-568.51,0.00013434,2]
[338206857,1726385462303,-500.0,0.00013434,2]
[338206858,1726385462313,-500.0,0.00013434,2]
[338206859,1726385462323,-500.0,0.00013434,2]
[338206860,1726385462332,-927.76,0.00013434,2]
[338206861,1726385462342,-500.0,0.00013434,2]
[338206862,1726385462353,-500.0,0.00013434,2]
[338206863,1726385462362,-500.0,0.00013434,2]
[338206864,1726385462372,-500.0,0.00013434,2]
[338206865,1726385462382,-564.53,0.00013434,2]
[338206866,1726385462392,-1574.67,0.00013434,2]
[338206867,1726385462401,-708.08,0.00013434,2]
[338206868,1726385462411,-500.0,0.00013434,2]
[338206869,1726385462421,-500.0,0.00013434,2]
[338206870,1726385462431,-500.0,0.00013434,2]
[338206871,1726385462441,-500.0,0.00013434,2]
[338206872,1726385462451,-500.0,0.00013434,2]
[338206873,1726385462461,-1012.43,0.00013434,2]
[338206874,1726385462471,-500.0,0.00013434,2]
[338206875,1726385462481,-500.0,0.00013434,2]
[338206876,1726385462491,-500.0,0.00013434,2]
[338206877,1726385462501,-500.0,0.00013434,2]
[338206878,1726385462511,-500.0,0.00013434,2]
[338206879,1726385462521,-620.09,0.00013434,2]
[338206880,1726385462531,-1519.23,0.00013434,2]
[338206881,1726385462541,-500.0,0.00013434,2]
[338206882,1726385462551,-525.09,0.00013434,2]
[338206883,1726385462561,-956.99,0.00013434,2]
[338206884,1726385462572,-500.0,0.00013434,2]
[338206885,1726385462583,-500.0,0.00013434,2]
[338206886,1726385462593,-1055.66,0.00013434,2]
[338206887,1726385462603,-520.19010536,0.00013434,2]
[338206888,1726385462613,-500.0,0.00013434,2]
[338206889,1726385462623,-117.46482099,0.00013434,2]
[338206890,1726385462640,-382.53517901,0.00013434,2]
[338206891,1726385462651,-49.46482099,0.00013434,2]
[338206892,1726385462663,-530.95163184,0.00013434,2]
[338206893,1726385462674,-297.95376087,0.00013434,2]
[338206894,1726385462686,-293.30521316,0.00013434,2]
[338206895,1726385462698,-88.10457314,0.00013434,2]
[338206896,1726385462709,-1319.76,0.00013434,2]
[338206897,1726385462719,-549.72,0.00013434,2]
[338206898,1726385462928,-1108.39,0.00013434,2]
[338206899,1726385462945,-741.15,0.00013434,2]
[338206900,1726385462956,-729.95,0.00013434,2]
[338206901,1726385462966,-1051.77,0.00013434,2]
[338206902,1726385462978,-1200.26,0.00013434,2]
[338206903,1726385462988,-2198.27,0.00013434,2]
[338206904,1726385462998,-516.56,0.00013434,2]
[338206905,1726385463009,-500.0,0.00013434,2]
[338206906,1726385463018,-1814.32,0.00013434,2]
[338206907,1726385463028,-500.0,0.00013434,2]
[338206908,1726385463037,-1746.93,0.00013434,2]
[338206909,1726385463047,-3307.3598239,0.00013434,2]
[338206910,1726385463059,-255.2201761,0.00013434,2]
[338206911,1726385463069,-79.97012273,0.00013434,2]
[338206912,1726385463082,-1652.76987727,0.00013434,2]
[338206913,1726385463091,-500.0,0.00013434,2]
[338206914,1726385463101,-500.0,0.00013434,2]
[338206915,1726385463110,-1522.17,0.00013434,2]
[338206916,1726385463120,-1384.03,0.00013434,2]
[338206917,1726385463129,-500.0,0.00013434,2]
[338206918,1726385463139,-2705.03,0.00013434,2]
[338206919,1726385463149,-500.0,0.00013434,2]
[338206920,1726385463159,-500.0,0.00013434,2]
[338206921,1726385463169,-500.0,0.00013434,2]
[338206922,1726385463178,-1164.0,0.00013434,2]
[338206923,1726385463188,-500.0,0.00013434,2]
[338206924,1726385463198,-567.31,0.00013434,2]
[338206925,1726385463207,-500.0,0.00013434,2]
[338206926,1726385463217,-640.4,0.00013434,2]
[338206927,1726385463226,-571.86,0.00013434,2]
[338206928,1726385463236,-1151.59,0.00013434,2]
[338206929,1726385463246,-2002.51,0.00013434,2]
[338206930,1726385463256,-500.0,0.00013434,2]
[338206931,1726385463265,-549.55,0.00013434,2]
[338206932,1726385463275,-500.0,0.00013434,2]
[338206933,1726385463285,-314.19737578,0.00013434,2]
[338206934,1726385464021,-1448.13210903,0.00013434,2]
[338206935,1726385464032,-1096.72051519,0.00013434,2]
[338206936,1726385464042,-567.4,0.00013434,2]
[338206937,1726385464052,-500.0,0.00013434,2]
[338206938,1726385464061,-500.0,0.00013434,2]
[338206939,1726385464071,-1975.97,0.00013434,2]
[338206940,1726385464081,-917.28075725,0.00013434,2]
[338206941,1726385464115,-1090.51044169,0.00013434,2]
[338206942,1726385464127,-735.915,0.00013434,2]
[338206943,1726385464138,-3092.09380106,0.00013434,2]
[338206944,1726385464148,-1170.11,0.00013434,2]
[338206945,1726385464157,-500.0,0.00013434,2]
[338206946,1726385464167,-1233.84,0.00013434,2]
[338206947,1726385464176,-2950.91,0.00013434,2]
[338206948,1726385464186,-1300.32,0.00013434,2]
[338206949,1726385464196,-657.41,0.00013434,2]
[338206950,1726385464206,-1270.91619894,0.00013434,2]
[338206951,1726385464218,-546.58380106,0.00013434,2]
[338206952,1726385464228,-1204.85,0.00013434,2]
[338206953,1726385464239,-500.0,0.00013434,2]
[338206954,1726385464249,-581.705095,0.00013434,2]
[338206955,1726385464260,-301.204905,0.00013434,2]
[338206956,1726385464270,-500.0,0.00013434,2]
[338206957,1726385464280,-500.0,0.00013434,2]
[338206958,1726385464290,-9.69165429,0.00013434,2]
[338206959,1726385464302,-659.52544,0.00013434,2]
[338206960,1726385464314,-1212.69290571,0.00013434,2]
[338206961,1726385464323,-410.1406114,0.00013434,2]
[338206962,1726385464344,-843.7293886,0.00013434,2]
[338206963,1726385464354,-286.7706114,0.00013434,2]
[338206964,1726385465764,-500.0,0.00012784,2]
[338206965,1726385465774,-248.82902201,0.00012785,2]
[338206966,1726385465785,-251.17097799,0.00012785,2]
[338206967,1726385465795,-24.39782041,0.00013058,2]
[338206968,1726385465806,-156.17217959,0.00013058,2]
[338206969,1726385465817,-150.0,0.0001337,2]
[338206970,1726385465827,-1201.4093886,0.00013434,2]
[338206971,1726385465837,-2510.04168139,0.00013434,2]
[338206972,1726385465849,-1890.07831861,0.00013434,2]
[338206973,1726385465859,-500.0,0.00013434,2]
[338206974,1726385465868,-1197.75,0.00013434,2]
[338206975,1726385465880,-177.8712135,0.00013434,2]
[338206976,1726385465901,-322.1287865,0.00013434,2]
[338206977,1726385465911,-500.0,0.00013434,2]
[338206978,1726385465921,-1760.19,0.00013434,2]
[338206979,1726385465930,-2196.13,0.00013434,2]
[338206980,1726385465939,-500.0,0.00013434,2]
[338206981,1726385465949,-733.94,0.00013434,2]
[338206982,1726385465959,-1838.9,0.00013434,2]
[338206983,1726385465969,-500.0,0.00013434,2]
[338206984,1726385465978,-2086.56,0.00013434,2]
[338206985,1726385465988,-819.02,0.00013434,2]
[338206986,1726385465997,-500.0,0.00013434,2]
[338206987,1726385466007,-500.0,0.00013434,2]
[338206988,1726385466017,-4846.02,0.00013434,2]
[338206989,1726385466026,-500.0,0.00013434,2]
[338206990,1726385466036,-534.97,0.00013434,2]
[338206991,1726385466045,-514.36794966,0.00013434,2]
[338206992,1726385466059,-541.13205034,0.00013434,2]
[338206993,1726385466069,-121.89544613,0.00013434,2]
[338206994,1726385466081,-2026.76455387,0.00013434,2]
[338206995,1726385466091,-808.1,0.00013434,2]
[338206996,1726385466101,-737.39,0.00013434,2]
[338206997,1726385466111,-500.0,0.00013434,2]
[338206998,1726385466120,-500.0,0.00013434,2]
[338206999,1726385466130,-500.0,0.00013434,2]
[338207000,1726385466139,-1454.3,0.00013434,2]
[338207001,1726385466149,-500.0,0.00013434,2]
[338207002,1726385466158,-668.76,0.00013434,2]
[338207003,1726385466167,-500.0,0.00013434,2]
[338207004,1726385466177,-178.797462,0.00013434,2]
[338207005,1726385466186,-178.797462,0.00013434,2]
[338207006,1726385466196,-500.0,0.00013434,2]
[338207007,1726385466205,-880.04,0.00013434,2]
[338207008,1726385466214,-1521.41,0.00013434,2]
[338207009,1726385466224,-500.0,0.00013434,2]
[338207010,1726385466233,-1755.61,0.00013434,2]
[338207011,1726385466244,-516.01,0.00013434,2]
[338207012,1726385466254,-678.58,0.00013434,2]
[338207013,1726385466264,-1419.39,0.00013434,2]
[338207014,1726385466274,-500.0,0.00013434,2]
[338207015,1726385466284,-500.0,0.00013434,2]
[338207016,1726385466294,-500.0,0.00013434,2]
[338207017,1726385466304,-500.0,0.00013434,2]
[338207018,1726385466313,-1160.1,0.00013434,2]
[338207019,1726385466323,-500.0,0.00013434,2]
[338207020,1726385466332,-1521.95,0.00013434,2]
[338207021,1726385466341,-151.0,0.00013434,2]
[338207022,1726385466351,-151.0,0.00013434,2]
[338207023,1726385466360,-500.0,0.00013434,2]
[338207024,1726385466369,-273.92,0.00013466,2]
[338207025,1726385466378,-774.0,0.00013478,2]
[338207026,1726385466388,-1902.0,0.0001348,2]
[338207027,1726385466398,-553.0,0.0001348,2]
[338207028,1726385466410,-1124.0,0.0001348,2]
[338207029,1726385466421,-806.0,0.0001348,2]
[338207030,1726385466430,-248.0,0.0001348,2]
[338207031,1726385466440,-3345.0,0.0001348,2]
[338207032,1726385466450,-1080.0,0.0001348,2]
[338207033,1726385466463,-1261.0,0.0001348,2]
[338207034,1726385466473,-1548.0,0.0001348,2]
[338207035,1726385466482,-5863.0,0.0001348,2]
[338207036,1726385466491,-624.0,0.0001348,2]
[338207037,1726385466502,-256.384,0.00013496,2]
[338207038,1726385466511,-187.13401527,0.00013496,2]
[338207039,1726385466521,-3611.91398038,0.00013529,2]
[338207040,1726385466530,-238.36021636,0.00013529,2]
[338207041,1726385466539,-1000.0,0.00013533,2]
[338207042,1726385466549,-500.0,0.00013535,2]
[338207043,1726385466560,-500.0,0.00013535,2]
[338207044,1726385466571,-249.70560021,0.00013535,2]
[338207045,1726385466580,-268.16570955,0.00013535,2]
[338207046,1726385466589,-500.0,0.00013535,2]
[338207047,1726385466599,-500.0,0.00013535,2]
[338207048,1726385466608,-500.0,0.00013535,2]
[338207049,1726385466618,-500.0,0.00013535,2]
[338207050,1726385466627,-500.0,0.00013535,2]
[338207051,1726385466636,-500.0,0.00013535,2]
[338207052,1726385466647,-1236.4,0.00013535,2]
[338207053,1726385466658,-1374.3,0.00013535,2]
[338207054,1726385466668,-500.0,0.00013535,2]
[338207055,1726385466678,-1000.0,0.00013535,2]
[338207056,1726385466687,-617.68199913,0.00013535,2]
[338207057,1726385466696,-500.0,0.00013535,2]
[338207058,1726385466709,-749.64,0.00013535,2]
[338207059,1726385466720,-1774.82,0.00013535,2]
[338207060,1726385466730,-942.25,0.00013535,2]
[338207061,1726385466738,-500.0,0.00013535,2]
[338207062,1726385466747,-500.0,0.00013535,2]
[338207063,1726385466757,-500.0,0.00013535,2]
[338207064,1726385466767,-286.4661345,0.00013535,2]
[338207065,1726385466789,-500.0,0.00012785,2]
[338207066,1726385466798,-208.389047,0.00012886,2]
[338207067,1726385466811,-1466.680953,0.00012886,2]
[338207068,1726385466820,-389.0138655,0.00013535,2]
[338207069,1726385466830,-500.0,0.00013535,2]
[338207070,1726385466840,-637.54,0.00013535,2]
[338207071,1726385466849,-937.47,0.00013535,2]
[338207072,1726385466859,-436.71311406,0.00013535,2]
[338207073,1726385466868,-530.76,0.00013535,2]
[338207074,1726385466878,-500.0,0.00013535,2]
[338207075,1726385466887,-500.0,0.00013535,2]
[338207076,1726385466900,-500.0,0.00013535,2]
[338207077,1726385466910,-500.0,0.00013535,2]
[338207078,1726385466919,-500.0,0.00013535,2]
[338207079,1726385466928,-500.0,0.00013535,2]
[338207080,1726385466939,-852.91,0.00013535,2]
[338207081,1726385466948,-760.64,0.00013535,2]
[338207082,1726385466958,-500.0,0.00013535,2]
[338207083,1726385466967,-500.0,0.00013535,2]
[338207084,1726385466978,-889.02,0.00013535,2]
[338207085,1726385466987,-500.0,0.00013535,2]
[338207086,1726385466996,-275.21481092,0.00013535,2]
[338207087,1726385467006,-500.0,0.00013535,2]
[338207088,1726385467015,-748.65,0.00013535,2]
[338207089,1726385467025,-597.45,0.00013535,2]
[338207090,1726385467035,-1035.49,0.00013535,2]
[338207091,1726385467045,-500.0,0.00013535,2]
[338207092,1726385467055,-1253.7,0.00013535,2]
[338207093,1726385467066,-500.0,0.00013535,2]
[338207094,1726385467076,-500.08,0.00013535,2]
[338207095,1726385467086,-500.0,0.00013535,2]
[338207096,1726385467096,-883.0,0.00013535,2]
[338207097,1726385467106,-727.79,0.00013535,2]
[338207098,1726385467115,-500.0,0.00013535,2]
[338207099,1726385467125,-500.0,0.00013535,2]
[338207100,1726385467135,-578.67,0.00013535,2]
[338207101,1726385467146,-920.05,0.00013535,2]